fUSD/lending_fUSD_20260405
["ID","MTS","AMOUNT","RATE_DAILY","PERIOD"]
[419755257,1775356242440,-500.0,0.00010721,2]
[419755258,1775356242449,-500.0,0.00010721,2]
[419755259,1775356242459,-500.0,0.00010721,2]
[419755260,1775356242469,-500.0,0.00010721,2]
[419755261,1775356242478,-500.0,0.00010721,2]
[419755262,1775356242488,-500.0,0.00010721,2]
[419755263,1775356242497,-150.0,0.00010721,2]
[419755264,1775356242506,-500.0,0.00010721,2]
[419755265,1775356242516,-1419.74,0.00010723,2]
[419755266,1775356242525,-37005.86281923,0.00010724,2]
[419755267,1775356242535,-1954.0,0.00010728,2]
[419755268,1775356242544,-1420.0,0.00010749,2]
[419755269,1775356242555,-1287.0,0.00010771,2]
[419755270,1775356242564,-200.0,0.00010772,2]
[419755271,1775356242575,-1438.09495884,0.00010772,2]
[419755272,1775356242584,-280.17407569,0.00010772,2]
[419755273,1775356242594,-500.0,0.00010772,2]
[419755274,1775356242604,-778.0,0.00010792,2]
[419755275,1775356242614,-1069.49567053,0.00010799,2]
[419755276,1775356242623,-50926.92914608,0.00010799,2]
[419755277,1775356242633,-150.07507541,0.000108,2]
[419755278,1775356242643,-9100.0,0.000108,3]
[419755279,1775356242653,-1269.51892118,0.000108,2]
[419755280,1775356242663,-3513.70828127,0.000108,2]
[419755281,1775356242672,-408.26690023,0.000108,2]
[419755282,1775356242682,-209.19812797,0.000108,2]
[419755283,1775356242692,-1041.0,0.00010813,2]
[419755284,1775356242701,-1233.36911655,0.00010819,2]
[419755285,1775356242710,-1282.0,0.00010834,2]
[419755286,1775356242720,-82672.58145998,0.00010855,2]
[419755287,1775356242729,-1366.0,0.00010856,2]
[419755288,1775356242739,-420.0,0.00010861,2]
[419755289,1775356242748,-1680.0,0.00010861,2]
[419755290,1775356242758,-420.0,0.00010861,2]
[419755291,1775356242767,-5000.0,0.00010861,2]
[419755293,1775356243064,-5000.0,0.00010861,2]
[419755294,1775356243074,-1289.31448071,0.00010861,2]
[419755295,1775356243085,-5000.0,0.00010861,2]
[419755296,1775356243095,-250.0,0.00010861,2]
[419755298,1775356243110,-305.92904771,0.00010873,2]
[419755300,1775356243121,-203.95269847,0.00010873,2]
[419755301,1775356243132,-386.75708509,0.00010873,2]
[419755302,1775356243143,-500.0,0.00010873,2]
[419755303,1775356243154,-500.0,0.00010873,2]
[419755304,1775356243164,-500.0,0.00010873,2]
[419755305,1775356243175,-307.43596926,0.00010873,2]
[419755306,1775356243185,-500.0,0.00010873,2]
[419755308,1775356243195,-500.0,0.00010873,2]
[419755310,1775356243204,-500.0,0.00010873,2]
[419755312,1775356243215,-500.0,0.00010873,2]
[419755313,1775356243225,-500.0,0.00010873,2]
[419755314,1775356243235,-500.0,0.00010873,2]
[419755315,1775356243244,-354.0,0.00010877,2]
[419755316,1775356243253,-3900.0,0.00010877,2]
[419755317,1775356243267,-1800.0,0.00010877,2]
[419755318,1775356243276,-701.5627369,0.0001089,2]
[419755319,1775356243286,-151.0,0.00010897,2]
[419755320,1775356243295,-1065.0,0.00010898,2]
[419755321,1775356243305,-1220.26673447,0.00010899,3]
[419755322,1775356243315,-1220.26673447,0.00010899,3]
[419755323,1775356243325,-1084.40717999,0.00010899,3]
[419755324,1775356243335,-1084.40718,0.00010899,3]
[419755325,1775356243344,-500.0,0.00010899,2]
[419755326,1775356243354,-500.0,0.00010899,2]
[419755327,1775356243363,-500.0,0.00010899,2]
[419755328,1775356243373,-500.0,0.00010899,2]
[419755329,1775356243382,-500.0,0.00010899,2]
[419755330,1775356243392,-500.0,0.00010899,2]
[419755331,1775356243402,-500.0,0.00010899,2]
[419755332,1775356243412,-500.0,0.00010899,2]
[419755333,1775356243422,-500.0,0.00010899,2]
[419755334,1775356243432,-196.98236896,0.00010899,2]
[419755335,1775356243441,-500.0,0.00010899,2]
[419755336,1775356243451,-500.0,0.00010899,2]
[419755337,1775356243460,-500.0,0.00010899,2]
[419755338,1775356243470,-500.0,0.00010899,2]
[419755339,1775356243480,-288.27377985,0.00010899,2]
[419755340,1775356243490,-500.0,0.00010899,2]
[419755341,1775356243499,-500.0,0.00010899,2]
[419755342,1775356243509,-500.0,0.00010899,2]
[419755343,1775356243520,-500.0,0.00010899,2]
[419755344,1775356243530,-269.87119332,0.00010899,2]
[419755345,1775356243539,-500.0,0.00010899,2]
[419755346,1775356243549,-500.0,0.00010899,2]
[419755347,1775356243558,-500.0,0.00010899,2]
[419755348,1775356243568,-500.0,0.00010899,2]
[419755349,1775356243578,-500.0,0.00010899,2]
[419755350,1775356243588,-2500000.0,0.000109,2]
[419755351,1775356243597,-12100.0,0.000109,3]
[419755352,1775356243607,-8099.66561594,0.000109,2]
[419755353,1775356243616,-2000.0,0.00010903,2]
[419755354,1775356243626,-850.0,0.00010919,2]
[419755355,1775356243636,-500.0,0.00010959,2]
[419755356,1775356243646,-1083.86941036,0.00010959,2]
[419755357,1775356243656,-166.66,0.00010973,2]
[419755358,1775356243666,-1419.74,0.00010997,2]
[419755359,1775356243676,-500.0,0.00011046,2]
[419755360,1775356243686,-40086.94444,0.00011099,2]
[419755361,1775356243696,-64907.45773637,0.00011099,2]
[419755362,1775356243705,-64907.45773634,0.00011099,2]
[419755363,1775356243715,-600.0,0.00011145,2]
[419755364,1775356243724,-238.54,0.00011145,2]
[419755365,1775356243735,-40086.94444,0.00011194,2]
[419755366,1775356243746,-255.0,0.00011212,2]
[419755367,1775356243755,-445.2,0.00011224,2]
[419755368,1775356243766,-1419.74,0.00011271,2]
[419755369,1775356243775,-166.66,0.00011313,2]
[419755370,1775356243785,-1491.30447232,0.0001132,2]
[419755371,1775356243794,-500.0,0.0001132,2]
[419755372,1775356243803,-1600.0,0.00011407,2]
[419755373,1775356243813,-1000.0,0.00011421,2]
[419755374,1775356243822,-1000.0,0.00011421,2]
[419755375,1775356243831,-741.77819316,0.00011421,2]
[419755376,1775356243841,-1000.0,0.00011421,2]
[419755377,1775356243850,-1000.0,0.00011421,2]
[419755378,1775356243859,-1000.0,0.00011421,2]
[419755379,1775356243868,-1000.0,0.00011421,2]
[419755380,1775356243878,-1000.0,0.00011421,2]
[419755381,1775356243887,-1000.0,0.00011421,2]
[419755382,1775356243897,-8099.66561587,0.00011443,2]
[419755383,1775356243908,-64907.45773634,0.00011527,2]
[419755384,1775356243917,-1419.74,0.00011545,2]
[419755385,1775356243927,-500.0,0.00011594,2]
[419755386,1775356243936,-40086.94444,0.00011631,2]
[419755387,1775356243946,-1269.51892114,0.0001165,2]
[419755388,1775356243956,-166.66,0.00011653,2]
[419755389,1775356243965,-1419.74,0.00011819,2]
[419755390,1775356243974,-500.0,0.00011868,2]
[419755391,1775356243984,-1546.48273779,0.00011868,2]
[419755392,1775356243994,-587.0,0.00011948,2]
[419755393,1775356244003,-2351.0,0.00011948,2]
[419755394,1775356244014,-255.0,0.00011948,2]
[419755395,1775356244024,-1500.0,0.00011968,2]
[419755396,1775356244033,-1500.0,0.00011968,2]
[419755397,1775356244043,-1500.0,0.00011968,2]
[419755398,1775356244053,-841.5818023,0.00011968,2]
[419755399,1775356244063,-1500.0,0.00011968,2]
[419755400,1775356244072,-1500.0,0.00011968,2]
[419755401,1775356244083,-1500.0,0.00011968,2]
[419755402,1775356244092,-825.4532572,0.00011968,2]
[419755403,1775356244102,-64907.45773634,0.0001198,2]
[419755404,1775356244111,-166.66,0.00011992,2]
[419755405,1775356244122,-40086.94444,0.00012069,2]
[419755406,1775356244131,-1419.74,0.00012093,2]
[419755407,1775356244141,-2000.0,0.00012114,2]
[419755408,1775356244150,-471.12014188,0.00012142,2]
[419755409,1775356244160,-8099.66561587,0.00012186,2]
[419755410,1775356244170,-433.0,0.00012324,2]
[419755411,1775356244179,-1419.74,0.00012367,2]
[419755412,1775356244189,-1603.70259909,0.00012416,2]
[419755413,1775356244198,-64907.45773634,0.00012432,2]
[419755414,1775356244208,-1269.51892114,0.000125,2]
[419755415,1775356244217,-40086.94444,0.00012507,2]
[419755416,1775356244226,-2000.0,0.00012516,2]
[419755417,1775356244235,-1608.3186174,0.00012516,2]
[419755418,1775356244245,-2000.0,0.00012516,2]
[419755419,1775356244254,-2000.0,0.00012516,2]
[419755420,1775356244264,-2000.0,0.00012516,2]
[419755421,1775356244274,-2000.0,0.00012516,2]
[419755422,1775356244283,-8959.893078,0.00012574,2]
[419755423,1775356244293,-1194.8519,0.00012574,2]
[419755424,1775356244302,-8673.312106,0.00012574,2]
[419755425,1775356244311,-910.519033,0.00012574,2]
[419755426,1775356244321,-1688.92921047,0.000126,2]
[419755427,1775356244331,-1419.74,0.00012641,2]
[419755428,1775356244340,-1600.0,0.00012674,2]
[419755429,1775356244349,-2000.0,0.00012692,2]
[419755430,1775356244359,-2000.0,0.00012692,2]
[419755431,1775356244373,-2000.0,0.00012692,2]
[419755432,1775356244383,-2000.0,0.00012692,2]
[419755433,1775356244392,-2000.0,0.00012692,2]
[419755434,1775356244403,-2000.0,0.00012692,2]
[419755435,1775356244412,-2000.0,0.00012692,2]
[419755436,1775356244421,-2000.0,0.00012692,2]
[419755437,1775356244430,-2000.0,0.00012692,2]
[419755438,1775356244440,-2000.0,0.00012692,2]
[419755439,1775356244449,-2000.0,0.00012692,2]
[419755440,1775356244459,-2000.0,0.00012692,2]
[419755441,1775356244468,-2000.0,0.00012692,2]
[419755442,1775356244478,-2000.0,0.00012692,2]
[419755443,1775356244488,-2000.0,0.00012692,2]
[419755444,1775356244497,-2000.0,0.00012692,2]
[419755445,1775356244510,-2000.0,0.00012692,2]
[419755446,1775356244520,-2000.0,0.00012692,2]
[419755447,1775356244529,-2000.0,0.00012692,2]
[419755448,1775356244539,-2000.0,0.00012692,2]
[419755449,1775356244548,-701.5627369,0.00012724,2]
[419755450,1775356244558,-2000.0,0.00012734,2]
[419755451,1775356244567,-2000.0,0.00012734,2]
[419755452,1775356244579,-2000.0,0.00012734,2]
[419755453,1775356244588,-2000.0,0.00012734,2]
[419755454,1775356244599,-2000.0,0.00012734,2]
[419755455,1775356244608,-2000.0,0.00012734,2]
[419755456,1775356244618,-2000.0,0.00012734,2]
[419755457,1775356244627,-2000.0,0.00012734,2]
[419755458,1775356244637,-2000.0,0.00012734,2]
[419755459,1775356244647,-2000.0,0.00012734,2]
[419755460,1775356244656,-2000.0,0.00012734,2]
[419755461,1775356244666,-2000.0,0.00012734,2]
[419755462,1775356244675,-2000.0,0.00012734,2]
[419755463,1775356244685,-2000.0,0.00012734,2]
[419755464,1775356244695,-2000.0,0.00012734,2]
[419755465,1775356244704,-2000.0,0.00012734,2]
[419755466,1775356244714,-2000.0,0.00012734,2]
[419755467,1775356244724,-2000.0,0.00012734,2]
[419755468,1775356244733,-2000.0,0.00012734,2]
[419755469,1775356244742,-2000.0,0.00012734,2]
[419755470,1775356244751,-153.40766799,0.00012764,2]
[419755471,1775356244761,-151.0,0.00012828,2]
[419755472,1775356244770,-64907.45773634,0.00012885,2]
[419755473,1775356244780,-15200.0,0.000129,4]
[419755474,1775356244790,-1419.74,0.00012915,2]
[419755475,1775356244799,-8099.66561587,0.00012929,2]
[419755476,1775356244808,-40086.94444,0.00012944,2]
[419755477,1775356244817,-173.7678398,0.00012963,2]
[419755478,1775356244827,-1663.03959526,0.00012964,2]
[419755479,1775356244837,-250.0,0.00013047,2]
[419755480,1775356244846,-2500.0,0.00013064,2]
[419755481,1775356244855,-566.12967577,0.00013064,2]
[419755482,1775356244864,-2500.0,0.00013064,2]
[419755483,1775356244874,-2500.0,0.00013064,2]
[419755484,1775356244883,-2500.0,0.00013064,2]
[419755485,1775356244892,-501.0,0.00013111,2]
[419755486,1775356244901,-500.0,0.00013111,2]
[419755487,1775356244911,-3292.0,0.00013142,2]
[419755488,1775356244920,-823.0,0.00013142,2]
[419755489,1775356244930,-600.0,0.00013166,2]
[419755490,1775356244939,-238.54,0.00013166,2]
[419755491,1775356244948,-1419.74,0.00013188,2]
[419755492,1775356244958,-445.2,0.00013299,2]
[419755493,1775356244967,-2000.0,0.00013326,2]
[419755494,1775356244976,-64907.45773634,0.00013337,2]
[419755495,1775356244985,-1269.51892114,0.0001335,2]
[419755496,1775356244994,-28192.14363459,0.0001335,2]
[419755497,1775356245004,-408.26690022,0.0001335,2]
[419755498,1775356245013,-1233.36911653,0.0001336,2]
[419755499,1775356245022,-40086.94444,0.00013382,2]
[419755500,1775356245032,-1409.14,0.000134,2]
[419755501,1775356245041,-1419.74,0.00013462,2]
[419755502,1775356245051,-1724.57206028,0.00013512,2]
[419755503,1775356245060,-736.0,0.00013539,2]
[419755504,1775356245069,-230.72,0.00013541,2]
[419755505,1775356245079,-5000.0,0.00013573,2]
[419755506,1775356245089,-5000.0,0.00013573,2]
[419755507,1775356245098,-5000.0,0.00013573,2]
[419755508,1775356245109,-2014.61985332,0.00013612,2]
[419755509,1775356245120,-307.01074123,0.00013612,2]
[419755510,1775356245129,-1002.46157564,0.00013612,2]
[419755511,1775356245139,-3000.0,0.00013612,2]
[419755512,1775356245148,-3460.63,0.00013647,2]
[419755513,1775356245157,-8099.66561587,0.00013671,2]
[419755514,1775356245167,-502.00598187,0.00013698,2]
[419755515,1775356245179,-500.0,0.00013698,2]
[419755516,1775356245189,-500.0,0.00013698,2]
[419755517,1775356245198,-500.0,0.00013698,2]
[419755518,1775356245209,-500.0,0.00013698,2]
[419755519,1775356245220,-500.0,0.00013698,2]
[419755520,1775356245230,-500.0,0.00013698,2]
[419755521,1775356245242,-500.0,0.00013698,2]
[419755522,1775356245253,-500.0,0.00013698,2]
[419755523,1775356245262,-500.0,0.00013698,2]
[419755524,1775356245272,-500.0,0.00013698,2]
[419755525,1775356245281,-500.0,0.00013698,2]
[419755526,1775356245292,-500.0,0.00013698,2]
[419755527,1775356245303,-500.0,0.00013698,2]
[419755528,1775356245312,-500.0,0.00013698,2]
[419755529,1775356245321,-433.23440034,0.00013698,2]
[419755530,1775356245331,-500.0,0.00013698,2]
[419755531,1775356245341,-500.0,0.00013698,2]
[419755532,1775356245350,-500.0,0.00013698,2]
[419755533,1775356245359,-500.0,0.00013698,2]
[419755534,1775356245368,-500.0,0.00013698,2]
[419755535,1775356245377,-500.0,0.00013698,2]
[419755536,1775356245387,-500.0,0.00013698,2]
[419755537,1775356245396,-500.0,0.00013698,2]
[419755538,1775356245404,-500.0,0.00013698,2]
[419755539,1775356245414,-500.0,0.00013698,2]
[419755540,1775356245422,-500.0,0.00013698,2]
[419755541,1775356245432,-500.0,0.00013698,2]
[419755542,1775356245441,-500.0,0.00013698,2]
[419755543,1775356245450,-500.0,0.00013698,2]
[419755544,1775356245459,-500.0,0.00013698,2]
[419755545,1775356245469,-500.0,0.00013698,2]
[419755546,1775356245478,-500.0,0.00013698,2]
[419755547,1775356245488,-636.9,0.00013698,2]
[419755548,1775356245497,-636.9,0.00013698,2]
[419755549,1775356245506,-636.9,0.00013698,2]
[419755550,1775356245515,-636.9,0.00013698,2]
[419755551,1775356245524,-636.9,0.00013698,2]
[419755552,1775356245534,-636.9,0.00013698,2]
[419755553,1775356245543,-636.9,0.00013698,2]
[419755554,1775356245552,-636.9,0.00013698,2]
[419755555,1775356245561,-636.9,0.00013698,2]
[419755556,1775356245570,-636.9,0.00013698,2]
[419755557,1775356245579,-636.9,0.00013698,2]
[419755558,1775356245589,-636.9,0.00013698,2]
[419755559,1775356245598,-636.9,0.00013698,2]
[419755560,1775356245608,-636.9,0.00013698,2]
[419755561,1775356245617,-636.9,0.00013698,2]
[419755562,1775356245626,-636.9,0.00013698,2]
[419755563,1775356245635,-636.9,0.00013698,2]
[419755564,1775356245644,-824.43,0.00013698,2]
[419755565,1775356245654,-500.0,0.00013698,2]
[419755566,1775356245663,-500.0,0.00013698,2]
[419755567,1775356245672,-500.0,0.00013698,2]
[419755568,1775356245682,-500.0,0.00013698,2]
[419755569,1775356245691,-520.65331997,0.00013698,2]
[419755570,1775356245701,-500.0,0.00013698,2]
[419755571,1775356245710,-500.0,0.00013698,2]
[419755572,1775356245719,-500.0,0.00013698,2]
[419755573,1775356245728,-500.0,0.00013698,2]
[419755574,1775356245737,-500.0,0.00013698,2]
[419755575,1775356245747,-500.0,0.00013698,2]
[419755576,1775356245756,-500.0,0.00013698,2]
[419755577,1775356245766,-500.0,0.00013698,2]
[419755578,1775356245775,-500.0,0.00013698,2]
[419755579,1775356245784,-500.0,0.00013698,2]
[419755580,1775356246003,-500.0,0.00013698,2]
[419755581,1775356246013,-500.0,0.00013698,2]
[419755582,1775356246023,-500.0,0.00013698,2]
[419755583,1775356246032,-500.0,0.00013698,2]
[419755584,1775356246042,-500.0,0.00013698,2]
[419755585,1775356246051,-500.0,0.00013698,2]
[419755586,1775356246060,-500.0,0.00013698,2]
[419755587,1775356246070,-500.0,0.00013698,2]
[419755588,1775356246079,-754.54,0.00013698,2]
[419755589,1775356246088,-754.54,0.00013698,2]
[419755590,1775356246097,-754.54,0.00013698,2]
[419755591,1775356246106,-754.54,0.00013698,2]
[419755592,1775356246115,-754.54,0.00013698,2]
[419755593,1775356246124,-754.54,0.00013698,2]
[419755594,1775356246133,-754.54,0.00013698,2]
[419755595,1775356246142,-754.54,0.00013698,2]
[419755596,1775356246151,-754.54,0.00013698,2]
[419755597,1775356246160,-754.54,0.00013698,2]
[419755598,1775356246169,-754.54,0.00013698,2]
[419755599,1775356246178,-754.54,0.00013698,2]
[419755600,1775356246188,-754.54,0.00013698,2]
[419755601,1775356246198,-754.54,0.00013698,2]
[419755602,1775356246207,-754.54,0.00013698,2]
[419755603,1775356246216,-754.54,0.00013698,2]
[419755604,1775356246226,-754.54,0.00013698,2]
[419755605,1775356246235,-754.54,0.00013698,2]
[419755606,1775356246244,-500.0,0.00013698,2]
[419755607,1775356246253,-500.0,0.00013698,2]
[419755608,1775356246262,-500.0,0.00013698,2]
[419755609,1775356246271,-500.0,0.00013698,2]
[419755610,1775356246280,-500.0,0.00013698,2]
[419755611,1775356246290,-500.0,0.00013698,2]
[419755612,1775356246299,-529.29006668,0.00013698,2]
[419755613,1775356246309,-1166.27,0.00013698,2]
[419755614,1775356246318,-1166.27,0.00013698,2]
[419755615,1775356246327,-1166.27,0.00013698,2]
[419755616,1775356246336,-1166.27,0.00013698,2]
[419755617,1775356246345,-1166.27,0.00013698,2]
[419755618,1775356246354,-1166.27,0.00013698,2]
[419755619,1775356246364,-1166.27,0.00013698,2]
[419755620,1775356246373,-1166.27,0.00013698,2]
[419755621,1775356246382,-1166.27,0.00013698,2]
[419755622,1775356246391,-1166.27,0.00013698,2]
[419755623,1775356246399,-1166.27,0.00013698,2]
[419755624,1775356246409,-1166.27,0.00013698,2]
[419755625,1775356246418,-1166.27,0.00013698,2]
[419755626,1775356246427,-1166.27,0.00013698,2]
[419755627,1775356246436,-1166.27,0.00013698,2]
[419755628,1775356246445,-1166.27,0.00013698,2]
[419755629,1775356246454,-1166.27,0.00013698,2]
[419755630,1775356246463,-1166.27,0.00013698,2]
[419755631,1775356246473,-500.0,0.00013698,2]
[419755632,1775356246482,-500.0,0.00013698,2]
[419755633,1775356246491,-500.0,0.00013698,2]
[419755634,1775356246500,-500.0,0.00013698,2]
[419755635,1775356246510,-500.0,0.00013698,2]
[419755636,1775356246519,-634.31523758,0.00013698,2]
[419755637,1775356246528,-500.0,0.00013698,2]
[419755638,1775356246538,-500.0,0.00013698,2]
[419755639,1775356246547,-500.0,0.00013698,2]
[419755640,1775356246556,-500.0,0.00013698,2]
[419755641,1775356246565,-500.0,0.00013698,2]
[419755642,1775356246574,-500.0,0.00013698,2]
[419755643,1775356246583,-500.0,0.00013698,2]
[419755644,1775356246593,-500.0,0.00013698,2]
[419755645,1775356246602,-500.0,0.00013698,2]
[419755646,1775356246611,-500.0,0.00013698,2]
[419755647,1775356246621,-500.0,0.00013698,2]
[419755648,1775356246630,-500.0,0.00013698,2]
[419755649,1775356246639,-333.65754629,0.00013698,2]
[419755650,1775356246648,-500.0,0.00013698,2]
[419755651,1775356246657,-500.0,0.00013698,2]
[419755652,1775356246667,-500.0,0.00013698,2]
[419755653,1775356246676,-500.0,0.00013698,2]
[419755654,1775356246685,-500.0,0.00013698,2]
[419755655,1775356246694,-500.0,0.00013698,2]
[419755656,1775356246704,-500.0,0.00013698,2]
[419755657,1775356246714,-500.0,0.00013698,2]
[419755658,1775356246723,-569.21254605,0.00013698,2]
[419755659,1775356246732,-500.0,0.00013698,2]
[419755660,1775356246741,-500.0,0.00013698,2]
[419755661,1775356246751,-500.0,0.00013698,2]
[419755662,1775356246760,-500.0,0.00013698,2]
[419755663,1775356246768,-500.0,0.00013698,2]
[419755664,1775356246778,-500.0,0.00013698,2]
[419755665,1775356246787,-500.0,0.00013698,2]
[419755666,1775356246797,-500.0,0.00013698,2]
[419755667,1775356246806,-500.0,0.00013698,2]
[419755668,1775356246816,-500.0,0.00013698,2]
[419755670,1775356246825,-500.0,0.00013698,2]
[419755671,1775356246835,-500.0,0.00013698,2]
[419755672,1775356246844,-500.0,0.00013698,2]
[419755673,1775356246854,-590.07729801,0.00013698,2]
[419755674,1775356246863,-879.21,0.00013698,2]
[419755675,1775356246872,-879.21,0.00013698,2]
[419755676,1775356246881,-879.21,0.00013698,2]
[419755677,1775356246891,-879.21,0.00013698,2]
[419755678,1775356246900,-879.21,0.00013698,2]
[419755679,1775356246910,-879.21,0.00013698,2]
[419755680,1775356246919,-879.21,0.00013698,2]
[419755681,1775356246930,-879.21,0.00013698,2]
[419755682,1775356246939,-879.21,0.00013698,2]
[419755683,1775356246949,-879.21,0.00013698,2]
[419755684,1775356246959,-879.21,0.00013698,2]
[419755685,1775356246968,-879.21,0.00013698,2]
[419755686,1775356246981,-879.21,0.00013698,2]
[419755687,1775356246991,-879.21,0.00013698,2]
[419755688,1775356247000,-879.21,0.00013698,2]
[419755689,1775356247010,-879.21,0.00013698,2]
[419755690,1775356247020,-879.21,0.00013698,2]
[419755691,1775356247030,-500.0,0.00013698,2]
[419755692,1775356247040,-500.0,0.00013698,2]
[419755693,1775356247050,-500.0,0.00013698,2]
[419755694,1775356247060,-500.0,0.00013698,2]
[419755695,1775356247070,-500.0,0.00013698,2]
[419755696,1775356247080,-500.0,0.00013698,2]
[419755697,1775356247090,-500.0,0.00013698,2]
[419755698,1775356247101,-500.0,0.00013698,2]
[419755699,1775356247111,-500.0,0.00013698,2]
[419755700,1775356247120,-500.0,0.00013698,2]
[419755701,1775356247130,-500.0,0.00013698,2]
[419755702,1775356247140,-500.0,0.00013698,2]
[419755703,1775356247151,-500.0,0.00013698,2]
[419755704,1775356247162,-500.0,0.00013698,2]
[419755705,1775356247173,-500.0,0.00013698,2]
[419755706,1775356247183,-500.0,0.00013698,2]
[419755707,1775356247192,-500.0,0.00013698,2]
[419755708,1775356247202,-500.0,0.00013698,2]
[419755709,1775356247211,-500.0,0.00013698,2]
[419755710,1775356247220,-500.0,0.00013698,2]
[419755711,1775356247482,-500.0,0.00013698,2]
[419755712,1775356247492,-500.0,0.00013698,2]
[419755713,1775356247502,-500.0,0.00013698,2]
[419755714,1775356247511,-500.0,0.00013698,2]
[419755715,1775356247521,-500.0,0.00013698,2]
[419755716,1775356247531,-500.0,0.00013698,2]
[419755717,1775356247541,-500.0,0.00013698,2]
[419755718,1775356247550,-500.0,0.00013698,2]
[419755719,1775356247560,-500.0,0.00013698,2]
[419755720,1775356247570,-500.0,0.00013698,2]
[419755721,1775356247580,-500.0,0.00013698,2]
[419755722,1775356247589,-500.0,0.00013698,2]
[419755723,1775356247599,-568.81904464,0.00013698,2]
[419755724,1775356247608,-500.0,0.00013698,2]
[419755725,1775356247618,-500.0,0.00013698,2]
[419755726,1775356247627,-500.0,0.00013698,2]
[419755727,1775356247637,-500.0,0.00013698,2]
[419755728,1775356247646,-500.0,0.00013698,2]
[419755729,1775356247656,-500.0,0.00013698,2]
[419755730,1775356247665,-500.0,0.00013698,2]
[419755731,1775356247676,-500.0,0.00013698,2]
[419755732,1775356247685,-500.0,0.00013698,2]
[419755733,1775356247694,-500.0,0.00013698,2]
[419755734,1775356247704,-500.0,0.00013698,2]
[419755735,1775356247714,-500.0,0.00013698,2]
[419755736,1775356247727,-500.0,0.00013698,2]
[419755737,1775356247736,-500.0,0.00013698,2]
[419755738,1775356247747,-500.0,0.00013698,2]
[419755739,1775356247756,-500.0,0.00013698,2]
[419755740,1775356247767,-500.0,0.00013698,2]
[419755741,1775356247777,-500.0,0.00013698,2]
[419755742,1775356247787,-443.06148824,0.00013698,2]
[419755743,1775356247797,-500.0,0.00013698,2]
[419755744,1775356247808,-585.5330066,0.00013698,2]
[419755745,1775356247817,-551.83212521,0.00013698,2]
[419755746,1775356247827,-500.0,0.00013698,2]
[419755747,1775356247837,-500.0,0.00013698,2]
[419755748,1775356247847,-500.0,0.00013698,2]
[419755749,1775356247856,-500.0,0.00013698,2]
[419755750,1775356247866,-500.0,0.00013698,2]
[419755751,1775356247877,-500.0,0.00013698,2]
[419755752,1775356247888,-500.0,0.00013698,2]
[419755753,1775356247898,-342.04805757,0.00013698,2]
[419755754,1775356247908,-500.0,0.00013698,2]
[419755755,1775356247917,-500.0,0.00013698,2]
[419755756,1775356247927,-500.0,0.00013698,2]
[419755757,1775356247937,-500.0,0.00013698,2]
[419755758,1775356247947,-500.0,0.00013698,2]
[419755759,1775356247958,-500.0,0.00013698,2]
[419755760,1775356247967,-370.56974227,0.00013698,2]
[419755761,1775356247977,-1104.74,0.00013698,2]
[419755762,1775356247987,-1104.74,0.00013698,2]
[419755763,1775356247996,-1104.74,0.00013698,2]